fUSD/lending_fUSD_20240327
["ID","MTS","AMOUNT","RATE_DAILY","PERIOD"]
[320731587,1711539099256,-1436.62,0.00056712,120]
[320731588,1711539099267,-2558.6,0.00056712,120]
[320731589,1711539099276,-2044.63,0.00056712,120]
[320731590,1711539099286,-500.0,0.00056712,120]
[320731591,1711539099296,-545.88,0.00056712,120]
[320731592,1711539099306,-783.0,0.00056712,120]
[320731593,1711539099315,-3085.25,0.00056712,120]
[320731594,1711539099325,-500.0,0.00056712,120]
[320731595,1711539099334,-500.0,0.00056712,120]
[320731596,1711539099345,-839.83,0.00056712,120]
[320731597,1711539099354,-735.26,0.00056712,120]
[320731598,1711539099364,-3173.89,0.00056712,120]
[320731599,1711539099373,-1365.01,0.00056712,120]
[320731600,1711539099383,-1347.96,0.00056712,120]
[320731601,1711539099393,-500.0,0.00056712,120]
[320731602,1711539099403,-401.26,0.00056712,120]
[320731603,1711539099413,-5132.44,0.00056712,120]
[320731604,1711539099423,-558.52,0.00056712,120]
[320731605,1711539099432,-7133.78,0.00056712,120]
[320731606,1711539099442,-579.76,0.00056712,120]
[320731607,1711539099451,-500.0,0.00056712,120]
[320731608,1711539099461,-1944.43,0.00056712,120]
[320731609,1711539099472,-500.0,0.00056712,120]
[320731610,1711539099482,-6097.44,0.00056712,120]
[320731611,1711539099491,-5109.09,0.00056712,120]
[320731612,1711539099501,-545.62,0.00056712,120]
[320731613,1711539099511,-663.4,0.00056712,120]
[320731614,1711539099521,-500.0,0.00056712,120]
[320731615,1711539099530,-500.0,0.00056712,120]
[320731616,1711539099540,-22670.34,0.00056712,120]
[320731617,1711539099549,-2453.89,0.00056712,120]
[320731618,1711539099560,-611.06,0.00056712,120]
[320731619,1711539099570,-7956.37,0.00056712,120]
[320731620,1711539099580,-2612.82,0.00056712,120]
[320731621,1711539099590,-1096.81,0.00056712,120]
[320731622,1711539099599,-2520.37,0.00056712,120]
[320731623,1711539099609,-628.48,0.00056712,120]
[320731624,1711539099618,-1032.54,0.00056712,120]
[320731625,1711539099628,-500.0,0.00056712,120]
[320731626,1711539099638,-2884.81,0.00056712,120]
[320731627,1711539099648,-3753.0,0.00056712,120]
[320731628,1711539099657,-5025.57,0.00056712,120]
[320731629,1711539099666,-9397.34,0.00056712,120]
[320731630,1711539099676,-43977.12,0.00056712,120]
[320731631,1711539099685,-500.0,0.00056712,120]
[320731632,1711539099697,-7954.08,0.00056712,120]
[320731633,1711539099707,-500.0,0.00056712,120]
[320731634,1711539099716,-379.27164793,0.00056712,120]
[320731635,1711539099727,-832.53,0.00056712,120]
[320731636,1711539099736,-5423.8,0.00056712,120]
[320731637,1711539099746,-5589.81,0.00056712,120]
[320731638,1711539099755,-3477.52,0.00056712,120]
[320731639,1711539099765,-500.0,0.00056712,120]
[320731640,1711539099775,-3295.4,0.00056712,120]
[320731641,1711539099785,-500.0,0.00056712,120]
[320731642,1711539099795,-79143.13,0.00056712,120]
[320731643,1711539099805,-4233.1,0.00056712,120]
[320731644,1711539099815,-1554.43,0.00056712,120]
[320731645,1711539099825,-500.0,0.00056712,120]
[320731646,1711539099835,-21230.92,0.00056712,120]
[320731647,1711539099844,-1796.45,0.00056712,120]
[320731648,1711539099854,-1488.59,0.00056712,120]
[320731649,1711539099867,-1590.82,0.00056712,120]
[320731650,1711539099925,-4270.02,0.00056712,120]
[320731651,1711539099934,-1416.51,0.00056712,120]
[320731652,1711539099943,-1436.29,0.00056712,120]
[320731653,1711539099953,-500.0,0.00056712,120]
[320731654,1711539099963,-1000.0,0.00056712,14]
[320731655,1711539099973,-4828.26,0.00056712,120]
[320731656,1711539099982,-2733.23,0.00056712,120]
[320731657,1711539099991,-2699.02,0.00056712,120]
[320731658,1711539100000,-4103.23,0.00056712,120]
[320731659,1711539100010,-794.6,0.00056712,120]
[320731660,1711539100019,-2649.26,0.00056712,120]
[320731661,1711539100029,-500.0,0.00056712,120]
[320731662,1711539100038,-3406.52,0.00056712,120]
[320731663,1711539100047,-1067.47,0.00056712,120]
[320731664,1711539100057,-500.0,0.00056712,120]
[320731665,1711539100065,-1008.05,0.00056712,120]
[320731666,1711539100075,-532.43,0.00056712,120]
[320731667,1711539100086,-500.0,0.00056712,120]
[320731668,1711539100095,-3326.63,0.00056712,120]
[320731669,1711539100105,-949.03,0.00056712,120]
[320731670,1711539100114,-13832.31,0.00056712,120]
[320731671,1711539100124,-500.0,0.00056712,120]
[320731672,1711539100133,-5725.46,0.00056712,120]
[320731673,1711539100143,-1080.08,0.00056712,120]
[320731674,1711539100153,-638.55,0.00056712,120]
[320731675,1711539100163,-532.1,0.00056712,120]
[320731676,1711539100172,-3178.59,0.00056712,120]
[320731677,1711539100181,-868.21,0.00056712,120]
[320731678,1711539100191,-1914.32,0.00056712,120]
[320731679,1711539100201,-5718.22,0.00056712,120]
[320731680,1711539100211,-500.0,0.00056712,120]
[320731681,1711539100220,-1510.54,0.00056712,120]
[320731682,1711539100230,-6090.95,0.00056712,120]
[320731683,1711539100239,-500.0,0.00056712,120]
[320731684,1711539100248,-2368.29,0.00056712,120]
[320731685,1711539100258,-1975.68,0.00056712,120]
[320731686,1711539100269,-2626.24,0.00056712,120]
[320731687,1711539100278,-826.27,0.00056712,120]
[320731688,1711539100287,-5971.8,0.00056712,120]
[320731689,1711539100297,-6306.66,0.00056712,120]
[320731690,1711539100308,-3796.34,0.00056712,120]
[320731691,1711539100317,-3897.67,0.00056712,120]
[320731692,1711539100327,-500.0,0.00056712,120]
[320731693,1711539100338,-2196.71,0.00056712,120]
[320731694,1711539100511,-1053.73,0.00056712,120]
[320731695,1711539100521,-500.0,0.00056712,7]
[320731696,1711539100530,-2509.66,0.00056712,120]
[320731697,1711539100540,-500.0,0.00056712,120]
[320731698,1711539100550,-2090.88,0.00056712,120]
[320731699,1711539100559,-500.0,0.00056712,120]
[320731700,1711539100569,-3728.83,0.00056712,120]
[320731701,1711539100579,-14051.88,0.00056712,120]
[320731702,1711539100589,-5336.71,0.00056712,120]
[320731703,1711539100598,-6046.1,0.00056712,120]
[320731704,1711539100608,-6749.09,0.00056712,120]
[320731705,1711539100618,-1400.16,0.00056712,120]
[320731706,1711539100627,-1020.49,0.00056712,120]
[320731707,1711539100636,-3525.02,0.00056712,120]
[320731708,1711539100646,-9670.8,0.00056712,120]
[320731709,1711539100655,-2244.9,0.00056712,120]
[320731710,1711539100665,-4278.93,0.00056712,120]
[320731711,1711539100675,-500.0,0.00056712,120]
[320731712,1711539100684,-5002.55,0.00056712,120]
[320731713,1711539100693,-500.0,0.00056712,120]
[320731714,1711539100703,-500.0,0.00056712,120]
[320731715,1711539100713,-5599.22,0.00056712,120]
[320731716,1711539100723,-1319.68,0.00056712,120]
[320731717,1711539100733,-4145.52,0.00056712,120]
[320731718,1711539100743,-1033.96,0.00056712,120]
[320731719,1711539100753,-8690.1,0.00056712,120]
[320731720,1711539100762,-759.99,0.00056712,120]
[320731721,1711539100773,-3689.75,0.00056712,120]
[320731722,1711539100783,-938.28,0.00056712,120]
[320731723,1711539100793,-3289.32,0.00056712,120]
[320731724,1711539100802,-773.1,0.00056712,120]
[320731725,1711539100813,-8474.88,0.00056712,120]
[320731726,1711539100823,-670.41,0.00056712,120]
[320731727,1711539100832,-684.84,0.00056712,120]
[320731728,1711539100842,-991.15,0.00056712,120]
[320731729,1711539100854,-16950.66,0.00056712,120]
[320731730,1711539100863,-5480.38,0.00056712,120]
[320731731,1711539100873,-3421.26,0.00056712,120]
[320731732,1711539100883,-649.49,0.00056712,120]
[320731733,1711539100893,-267.3,0.00056712,120]
[320731734,1711539100903,-1159.66,0.00056712,120]
[320731735,1711539100913,-2172.19,0.00056712,120]
[320731736,1711539100922,-2895.84,0.00056712,120]
[320731737,1711539100932,-20784.38,0.00056712,120]
[320731738,1711539100941,-2732.75,0.00056712,120]
[320731739,1711539100951,-17160.48,0.00056712,120]
[320731740,1711539100960,-4740.83,0.00056712,120]
[320731741,1711539100971,-672.63,0.00056712,120]
[320731742,1711539100981,-886.33,0.00056712,120]
[320731743,1711539100990,-6247.3,0.00056712,120]
[320731744,1711539101000,-5091.09,0.00056712,21]
[320731745,1711539101009,-500.0,0.00056712,120]
[320731746,1711539101019,-584.47,0.00056712,120]
[320731747,1711539101029,-8381.34,0.00056712,120]
[320731748,1711539101040,-4086.57,0.00056712,120]
[320731749,1711539101050,-2273.07,0.00056712,120]
[320731750,1711539101060,-2370.47,0.00056712,120]
[320731751,1711539101069,-19292.32,0.00056712,120]
[320731752,1711539101078,-2960.24,0.00056712,120]
[320731753,1711539101087,-1173.99,0.00056712,120]
[320731754,1711539101097,-500.0,0.00056712,120]
[320731755,1711539101107,-500.0,0.00056712,85]
[320731756,1711539101117,-2202.57,0.00056712,120]
[320731757,1711539101126,-12410.62,0.00056712,120]
[320731758,1711539101136,-3278.85,0.00056712,120]
[320731759,1711539101146,-8798.58,0.00056712,120]
[320731760,1711539101155,-876.94,0.00056712,120]
[320731761,1711539101164,-3583.19,0.00056712,120]
[320731762,1711539101174,-895.2,0.00056712,120]
[320731763,1711539101183,-500.0,0.00056712,120]
[320731764,1711539101193,-500.0,0.00056712,120]
[320731765,1711539101203,-500.0,0.00056712,120]
[320731766,1711539101213,-1845.88,0.00056712,120]
[320731767,1711539101225,-937.27,0.00056712,120]
[320731768,1711539101234,-1083.78,0.00056712,120]
[320731769,1711539101245,-3201.11,0.00056712,120]
[320731770,1711539101256,-2638.24,0.00056712,120]
[320731771,1711539101268,-1388.52,0.00056712,120]
[320731772,1711539101277,-4892.27,0.00056712,120]
[320731773,1711539101286,-2480.34,0.00056712,120]
[320731774,1711539101297,-1350.19,0.00056712,120]
[320731775,1711539101307,-3142.36,0.00056712,120]
[320731776,1711539101316,-2180.01,0.00056712,120]
[320731777,1711539101325,-1470.53,0.00056712,120]
[320731778,1711539101335,-500.0,0.00056712,120]
[320731779,1711539101346,-500.0,0.00056712,120]
[320731780,1711539101356,-500.0,0.00056712,120]
[320731781,1711539101366,-505.71,0.00056712,120]
[320731782,1711539101375,-1659.22,0.00056712,120]
[320731783,1711539101384,-8083.93,0.00056712,120]
[320731784,1711539101394,-500.0,0.00056712,120]
[320731785,1711539101403,-2931.63,0.00056712,120]
[320731786,1711539101412,-2901.36,0.00056712,120]
[320731787,1711539101423,-541.86,0.00056712,120]
[320731788,1711539101433,-3516.57,0.00056712,120]
[320731789,1711539101442,-4166.77,0.00056712,120]
[320731790,1711539101452,-10990.32,0.00056712,120]
[320731791,1711539101461,-1139.26,0.00056712,120]
[320731792,1711539101473,-151.0,0.00056712,120]
[320731793,1711539101482,-686.73,0.00056712,120]
[320731794,1711539101492,-1716.32,0.00056712,120]
[320731795,1711539101501,-500.0,0.00056712,120]
[320731796,1711539101510,-2230.4,0.00056712,120]
[320731797,1711539101519,-1803.38,0.00056712,120]
[320731798,1711539101528,-636.50981946,0.00056727,120]
[320731799,1711539101538,-154.37388192,0.00056755,120]
[320731800,1711539101547,-162.12929693,0.00056787,120]
[320731801,1711539101557,-157.032715,0.00056798,110]
[320731802,1711539101566,-335.863232,0.000568,30]
[320731803,1711539101575,-542.73,0.000568,30]
[320731804,1711539101584,-1052.05081,0.000568,30]
[320731805,1711539101594,-382.155807,0.000568,30]
[320731806,1711539101603,-360.014514,0.000568,30]
[320731807,1711539101613,-626.884325,0.000568,30]
[320731808,1711539101622,-904.110408,0.000568,30]
[320731809,1711539101631,-250.0,0.000568,23]
[320731810,1711539101641,-250.0,0.000568,23]
[320731811,1711539101651,-250.0,0.000568,23]
[320731812,1711539101660,-9100.250636,0.00056815,30]
[320731813,1711539101669,-14879.248352,0.00056815,30]
[320731814,1711539101678,-167.006304,0.00056815,90]
[320731815,1711539101688,-156.14444312,0.00056827,120]
[320731816,1711539101697,-1400.0,0.0005684,120]
[320731817,1711539101706,-1107.90831877,0.00056877,120]
[320731818,1711539101715,-282.33678653,0.00056877,120]
[320731819,1711539101726,-303.12040052,0.00056877,120]
[320731820,1711539101735,-172.64311964,0.0005689,120]
[320731821,1711539101744,-150.0,0.00056906,120]
[320731822,1711539101754,-190.24451948,0.00056929,120]
[320731823,1711539101763,-500.0,0.00056936,90]
[320731824,1711539101772,-500.0,0.00056936,90]
[320731825,1711539101781,-2000.0,0.00056986,120]
[320731826,1711539101791,-895.23,0.00056986,120]
[320731827,1711539101800,-575.28,0.00056986,120]
[320731828,1711539101810,-500.0,0.00056986,120]
[320731829,1711539101820,-500.0,0.00056986,120]
[320731830,1711539101830,-500.0,0.00056986,120]
[320731831,1711539101839,-500.0,0.00056986,120]
[320731832,1711539101848,-563.96,0.00056986,120]
[320731833,1711539101858,-500.0,0.00056986,120]
[320731834,1711539101868,-338.54132393,0.00056986,120]
[320731835,1711539101877,-500.0,0.00056986,120]
[320731836,1711539101886,-500.0,0.00056986,120]
[320731837,1711539101895,-500.0,0.00056986,120]
[320731838,1711539101904,-607.84,0.00056986,120]
[320731839,1711539101914,-468.62,0.00056986,120]
[320731840,1711539101923,-500.0,0.00056986,120]
[320731841,1711539101932,-500.0,0.00056986,120]
[320731842,1711539101941,-976.2,0.00056986,120]
[320731843,1711539101950,-561.58,0.00056986,120]
[320731844,1711539101959,-500.0,0.00056986,120]
[320731845,1711539101968,-500.0,0.00056986,120]
[320731846,1711539101977,-531.34,0.00056986,120]
[320731847,1711539101987,-500.0,0.00056986,120]
[320731848,1711539101996,-575.24,0.00056986,120]
[320731849,1711539102005,-500.0,0.00056986,120]
[320731850,1711539102015,-500.0,0.00056986,120]
[320731851,1711539102024,-503.38,0.00056986,120]
[320731852,1711539102036,-500.0,0.00056986,120]
[320731853,1711539102053,-544.36,0.00056986,120]
[320731854,1711539102068,-656.62,0.00056986,120]
[320731855,1711539102082,-786.05,0.00056986,120]
[320731856,1711539102097,-1108.32,0.00056986,120]
[320731857,1711539102115,-500.0,0.00056986,120]
[320731858,1711539102129,-500.0,0.00056986,120]
[320731859,1711539102142,-500.0,0.00056986,120]
[320731860,1711539102156,-486.72,0.00056986,120]
[320731861,1711539102170,-582.28,0.00056986,120]
[320731862,1711539102186,-532.15,0.00056986,120]
[320731863,1711539102197,-500.0,0.00056986,120]
[320731864,1711539102214,-500.0,0.00056986,120]
[320731865,1711539102230,-500.0,0.00056986,120]
[320731866,1711539102243,-464.91940251,0.00056986,120]
[320731867,1711539102261,-500.0,0.00056986,120]
[320731868,1711539102277,-500.0,0.00056986,120]
[320731869,1711539102293,-500.0,0.00056986,120]
[320731870,1711539102309,-500.0,0.00056986,120]
[320731871,1711539102320,-500.0,0.00056986,120]
[320731872,1711539102334,-304.98,0.00056986,120]
[320731873,1711539102348,-500.0,0.00056986,120]
[320731874,1711539102369,-500.0,0.00056986,120]
[320731875,1711539102381,-500.0,0.00056986,120]
[320731876,1711539102395,-650.65,0.00056986,120]
[320731877,1711539102408,-276.26503715,0.00056986,120]
[320731878,1711539102420,-500.0,0.00056986,120]
[320731879,1711539102435,-666.49,0.00056986,120]
[320731880,1711539102448,-500.0,0.00056986,120]
[320731881,1711539102462,-512.61,0.00056986,120]
[320731882,1711539102477,-500.0,0.00056986,120]
[320731883,1711539102490,-255.54,0.00056986,120]
[320731884,1711539102503,-500.0,0.00056986,120]
[320731885,1711539102517,-500.0,0.00056986,120]
[320731886,1711539102532,-500.0,0.00056986,120]
[320731887,1711539102545,-500.0,0.00056986,120]
[320731888,1711539102558,-500.0,0.00056986,120]
[320731889,1711539102572,-610.66,0.00056986,120]
[320731890,1711539102585,-544.48,0.00056986,120]
[320731891,1711539102598,-500.0,0.00056986,120]
[320731892,1711539102610,-500.0,0.00056986,120]
[320731893,1711539102622,-1264.52,0.00056986,120]
[320731894,1711539102636,-500.0,0.00056986,120]
[320731895,1711539102649,-564.14,0.00056986,120]
[320731896,1711539102662,-617.82,0.00056986,120]
[320731897,1711539102675,-151.0,0.00056986,14]
[320731898,1711539102688,-832.09,0.00056986,120]
[320731899,1711539102701,-921.37,0.00056986,120]
[320731900,1711539102714,-695.47,0.00056986,120]
[320731901,1711539102729,-1458.74,0.00056986,120]
[320731902,1711539102743,-500.0,0.00056986,120]
[320731903,1711539102757,-1146.87,0.00056986,120]
[320731904,1711539102769,-500.0,0.00056986,120]
[320731905,1711539102782,-597.38,0.00056986,120]
[320731906,1711539102796,-2719.96,0.00056986,120]
[320731907,1711539102810,-500.0,0.00056986,120]
[320731908,1711539102822,-1170.95,0.00056986,120]
[320731909,1711539102835,-478.88,0.00056986,120]
[320731910,1711539102847,-500.0,0.00056986,120]
[320731911,1711539102859,-1986.6,0.00056986,120]
[320731912,1711539102872,-884.38,0.00056986,120]
[320731913,1711539102885,-1057.95,0.00056986,120]
[320731914,1711539102898,-616.91,0.00056986,120]
[320731915,1711539102910,-533.04,0.00056986,120]
[320731916,1711539102923,-537.22,0.00056986,120]
[320731917,1711539102936,-702.45,0.00056986,120]
[320731918,1711539102948,-5471.51,0.00056986,120]
[320731919,1711539102962,-587.11,0.00056986,120]
[320731920,1711539102975,-500.0,0.00056986,120]
[320731921,1711539102987,-500.0,0.00056986,120]
[320731922,1711539103000,-500.0,0.00056986,120]
[320731923,1711539103013,-2128.3,0.00056986,120]
[320731924,1711539103025,-500.0,0.00056986,120]
[320731925,1711539103038,-500.0,0.00056986,120]
[320731926,1711539103051,-500.0,0.00056986,120]
[320731927,1711539103064,-961.96,0.00056986,120]
[320731928,1711539103076,-792.02,0.00056986,120]
[320731929,1711539103089,-613.31,0.00056986,120]
[320731930,1711539103102,-1258.8,0.00056986,120]
[320731931,1711539103114,-931.2,0.00056986,120]
[320731932,1711539103128,-663.5,0.00056986,120]
[320731933,1711539103141,-500.0,0.00056986,120]
[320731934,1711539103153,-1126.29,0.00056986,120]
[320731935,1711539103165,-905.93,0.00056986,120]
[320731936,1711539103177,-596.37,0.00056986,120]
[320731937,1711539103189,-500.0,0.00056986,120]
[320731938,1711539103201,-1145.15,0.00056986,120]
[320731939,1711539103213,-1047.43,0.00056986,120]
[320731940,1711539103226,-500.0,0.00056986,120]
[320731941,1711539103238,-1079.19,0.00056986,120]
[320731942,1711539103251,-151.0,0.00056986,120]
[320731943,1711539103267,-500.0,0.00056986,120]
[320731944,1711539103279,-500.0,0.00056986,120]
[320731945,1711539103292,-500.0,0.00056986,120]
[320731946,1711539103304,-500.0,0.00056986,120]
[320731947,1711539103317,-168.960606,0.00056986,120]
[320731948,1711539103329,-1050.1,0.00056986,120]
[320731949,1711539103344,-500.0,0.00056986,120]
[320731950,1711539103356,-668.88,0.00056986,120]
[320731951,1711539103368,-798.22,0.00056986,120]
[320731952,1711539103380,-500.0,0.00056986,120]
[320731953,1711539103393,-500.0,0.00056986,120]
[320731954,1711539103405,-865.88,0.00056986,120]
[320731955,1711539103417,-500.0,0.00056986,120]
[320731956,1711539103430,-500.0,0.00056986,120]
[320731957,1711539103442,-805.48,0.00056986,120]
[320731958,1711539103455,-698.77,0.00056986,120]
[320731959,1711539103467,-895.29,0.00056986,120]
[320731960,1711539103481,-2904.63,0.00056986,120]
[320731961,1711539103493,-500.0,0.00056986,120]
[320731962,1711539103506,-575.0,0.00056986,120]
[320731963,1711539103519,-1059.6,0.00056986,120]
[320731964,1711539103531,-624.76,0.00056986,120]
[320731965,1711539103543,-566.16,0.00056986,120]
[320731966,1711539103556,-500.0,0.00056986,120]
[320731967,1711539103568,-500.0,0.00056986,120]
[320731968,1711539103581,-500.0,0.00056986,120]
[320731969,1711539103593,-596.27,0.00056986,120]
[320731970,1711539103605,-511.44,0.00056986,120]
[320731971,1711539103617,-500.0,0.00056986,120]
[320731972,1711539103630,-2461.83,0.00056986,120]
[320731973,1711539103642,-670.39,0.00056986,120]
[320731974,1711539103654,-500.0,0.00056986,120]
[320731975,1711539103666,-1096.84,0.00056986,120]
[320731976,1711539103678,-730.57,0.00056986,120]
[320731977,1711539103690,-526.24,0.00056986,120]
[320731978,1711539103702,-500.0,0.00056986,120]
[320731979,1711539103714,-813.47,0.00056986,120]
[320731980,1711539103727,-500.0,0.00056986,120]
[320731981,1711539103738,-982.22,0.00056986,120]
[320731982,1711539103750,-2323.15,0.00056986,120]
[320731983,1711539103762,-952.22,0.00056986,120]
[320731984,1711539103773,-1090.65,0.00056986,120]
[320731985,1711539103785,-2118.58,0.00056986,120]
[320731986,1711539103798,-819.74,0.00056986,120]
[320731987,1711539103809,-500.0,0.00056986,120]
[320731988,1711539103821,-500.0,0.00056986,120]
[320731989,1711539103833,-500.0,0.00056986,120]
[320731990,1711539103846,-500.0,0.00056986,120]
[320731991,1711539103858,-680.58,0.00056986,120]
[320731992,1711539103871,-1006.99,0.00056986,120]
[320731993,1711539103883,-500.0,0.00056986,120]
[320731994,1711539103896,-2012.56,0.00056986,120]
[320731995,1711539103908,-525.09,0.00056986,120]
[320731996,1711539103923,-1027.05,0.00056986,120]
[320731997,1711539103936,-775.63,0.00056986,120]
[320731998,1711539103948,-909.15,0.00056986,120]
[320731999,1711539103959,-669.48,0.00056986,120]
[320732000,1711539103972,-2014.61,0.00056986,120]
[320732001,1711539103984,-500.0,0.00056986,120]
[320732002,1711539103996,-613.39,0.00056986,30]
[320732003,1711539104009,-500.0,0.00056986,120]
[320732004,1711539104022,-670.15,0.00056986,120]
[320732005,1711539104034,-547.5,0.00056986,120]
[320732006,1711539104046,-613.0,0.00056986,120]
[320732007,1711539104059,-500.0,0.00056986,120]
[320732008,1711539104071,-741.01,0.00056986,120]
[320732009,1711539104082,-715.82,0.00056986,120]
[320732010,1711539104095,-693.91,0.00056986,120]
[320732011,1711539104107,-500.0,0.00056986,120]
[320732012,1711539104412,-500.0,0.00056986,120]
[320732013,1711539104432,-1436.63,0.00056986,120]
[320732014,1711539104451,-788.63,0.00056986,120]
[320732015,1711539104463,-500.0,0.00056986,120]
[320732016,1711539104475,-500.0,0.00056986,120]
[320732017,1711539104485,-852.33,0.00056986,120]
[320732018,1711539104496,-500.0,0.00056986,120]
[320732019,1711539104506,-608.04,0.00056986,120]
[320732020,1711539104517,-500.0,0.00056986,120]
[320732021,1711539104527,-632.68,0.00056986,120]
[320732022,1711539104537,-500.0,0.00056986,120]
[320732023,1711539104547,-524.62,0.00056986,120]
[320732024,1711539104557,-620.43,0.00056986,120]
[320732025,1711539104567,-818.9,0.00056986,120]
[320732026,1711539104577,-2063.63,0.00056986,120]
[320732027,1711539104587,-1004.28,0.00056986,120]
[320732028,1711539104597,-2011.71,0.00056986,120]
[320732029,1711539104608,-807.51,0.00056986,120]
[320732030,1711539104617,-500.0,0.00056986,120]
[320732031,1711539104628,-500.0,0.00056986,120]
[320732032,1711539104638,-500.0,0.00056986,120]
[320732033,1711539104648,-763.33,0.00056986,120]
[320732034,1711539104658,-755.18,0.00056986,120]
[320732035,1711539104668,-487.81,0.00056986,120]
[320732036,1711539104678,-500.0,0.00056986,120]
[320732037,1711539104688,-842.7,0.00056986,120]
[320732038,1711539104698,-713.05,0.00056986,120]
[320732039,1711539104709,-2308.15,0.00056986,120]
[320732040,1711539104719,-500.0,0.00056986,120]
[320732041,1711539104731,-500.0,0.00056986,120]
[320732042,1711539104741,-500.0,0.00056986,120]
[320732043,1711539104752,-500.0,0.00056986,120]
[320732044,1711539104762,-676.12,0.00056986,120]
[320732045,1711539104772,-849.59,0.00056986,120]
[320732046,1711539104782,-500.0,0.00056986,120]
[320732047,1711539104792,-677.22,0.00056986,120]
[320732048,1711539104802,-500.0,0.00056986,120]
[320732049,1711539104812,-500.0,0.00056986,120]
[320732050,1711539104822,-800.48,0.00056986,120]
[320732051,1711539104833,-988.02,0.00056986,120]
[320732052,1711539104842,-500.0,0.00056986,120]
[320732053,1711539104852,-535.04,0.00056986,120]
[320732054,1711539104862,-930.48,0.00056986,120]
[320732055,1711539104872,-500.0,0.00056986,120]
[320732056,1711539104881,-500.0,0.00056986,120]
[320732057,1711539104892,-877.53,0.00056986,120]
[320732058,1711539104902,-2082.72,0.00056986,120]
[320732059,1711539104912,-500.0,0.00056986,120]
[320732060,1711539104921,-520.53,0.00056986,120]
[320732061,1711539104930,-500.0,0.00056986,120]
[320732062,1711539104939,-1016.45,0.00056986,120]
[320732063,1711539104949,-525.83,0.00056986,120]
[320732064,1711539104959,-500.0,0.00056986,120]
[320732065,1711539104970,-500.0,0.00056986,120]
[320732066,1711539104981,-500.0,0.00056986,120]
[320732067,1711539104991,-1436.62,0.00056986,120]
[320732068,1711539105001,-2558.6,0.00056986,120]
[320732069,1711539105010,-2044.63,0.00056986,120]
[320732070,1711539105020,-415.66,0.00056986,120]
[320732071,1711539105030,-545.88,0.00056986,120]
[320732072,1711539105040,-783.0,0.00056986,120]
[320732073,1711539105050,-3085.25,0.00056986,120]
[320732074,1711539105060,-222.72,0.00056986,120]
[320732075,1711539105069,-500.0,0.00056986,120]
[320732076,1711539105079,-839.83,0.00056986,120]
[320732077,1711539105089,-735.26,0.00056986,120]
[320732078,1711539105098,-3173.89,0.00056986,120]
[320732079,1711539105108,-1365.01,0.00056986,120]
[320732080,1711539105118,-1347.96,0.00056986,120]
[320732081,1711539105127,-500.0,0.00056986,120]
[320732082,1711539105137,-5132.44,0.00056986,120]
[320732083,1711539105147,-558.52,0.00056986,120]
[320732084,1711539105158,-7133.78,0.00056986,120]
[320732085,1711539105168,-579.76,0.00056986,120]
[320732086,1711539105177,-500.0,0.00056986,120]